fUST/lending_fUST_20251202
["ID","MTS","AMOUNT","RATE_DAILY","PERIOD"]
[395327642,1764631843213,-184.77350694,0.00013273,2]
[395327644,1764631843222,-163.50305013,0.00013273,2]
[395327646,1764631843231,-383.82377771,0.00013273,2]
[395327649,1764631843242,-448.20000022,0.00013273,2]
[395327650,1764631843251,-500.0,0.00013273,2]
[395327653,1764631843260,-500.0,0.00013273,2]
[395327655,1764631843270,-500.02715844,0.00013273,2]
[395327657,1764631843279,-500.0,0.00013273,2]
[395327658,1764631843288,-500.0,0.00013273,2]
[395327660,1764631843298,-500.0,0.00013273,2]
[395327662,1764631843307,-500.0,0.00013273,2]
[395327665,1764631843316,-160.10172978,0.00013273,2]
[395327666,1764631843326,-500.0,0.00013273,2]
[395327669,1764631843338,-500.0,0.00013273,2]
[395327671,1764631843348,-500.0,0.00013273,2]
[395327673,1764631843357,-500.0,0.00013273,2]
[395327674,1764631843366,-204.3279564,0.00013273,2]
[395327676,1764631843377,-500.0,0.00013273,2]
[395327678,1764631843388,-500.0,0.00013273,2]
[395327681,1764631843398,-500.0,0.00013273,2]
[395327683,1764631843407,-500.0,0.00013273,2]
[395327685,1764631843419,-500.0,0.00013273,2]
[395327686,1764631843428,-231.56484894,0.00013273,2]
[395327688,1764631843437,-151.0,0.000134,2]
[395327690,1764631843446,-500.0,0.0001351,2]
[395327692,1764631843456,-266.77622153,0.00013626,2]
[395327695,1764631843465,-287.61899177,0.00013652,2]
[395327697,1764631843474,-540.0,0.00013665,2]
[395327698,1764631843483,-587.04714869,0.00013698,2]
[395327700,1764631843494,-500.0,0.00013698,2]
[395327702,1764631843503,-505.59675823,0.00013698,2]
[395327704,1764631843512,-7211.72,0.00013698,2]
[395327706,1764631843522,-7211.72,0.00013698,2]
[395327708,1764631843531,-7211.72,0.00013698,2]
[395327710,1764631843540,-7211.72,0.00013698,2]
[395327712,1764631843549,-7211.72,0.00013698,2]
[395327714,1764631843559,-7211.72,0.00013698,2]
[395327716,1764631843568,-7211.72,0.00013698,2]
[395327718,1764631843577,-7211.72,0.00013698,2]
[395327720,1764631843586,-7211.72,0.00013698,2]
[395327722,1764631843596,-7211.72,0.00013698,2]
[395327724,1764631843605,-7211.72,0.00013698,2]
[395327726,1764631843615,-7211.72,0.00013698,2]
[395327728,1764631843624,-7211.72,0.00013698,2]
[395327730,1764631843633,-7211.72,0.00013698,2]
[395327732,1764631843642,-7211.72,0.00013698,2]
[395327734,1764631843651,-7211.72,0.00013698,2]
[395327736,1764631843661,-7211.72,0.00013698,2]
[395327738,1764631843670,-7211.72,0.00013698,2]
[395327740,1764631843679,-7211.72,0.00013698,2]
[395327742,1764631843688,-7211.72,0.00013698,2]
[395327744,1764631843699,-7211.72,0.00013698,2]
[395327746,1764631843708,-7211.72,0.00013698,2]
[395327748,1764631843719,-7211.72,0.00013698,2]
[395327751,1764631843729,-7211.91724438,0.00013698,2]
[395327753,1764631843738,-500.0,0.00013698,2]
[395327754,1764631843747,-500.0,0.00013698,2]
[395327757,1764631843756,-500.0,0.00013698,2]
[395327759,1764631843765,-195.03992684,0.00013698,2]
[395327761,1764631843775,-526.41892473,0.00013698,2]
[395327762,1764631843784,-500.0,0.00013698,2]
[395327764,1764631843793,-500.0,0.00013698,2]
[395327766,1764631843802,-500.0,0.00013698,2]
[395327768,1764631843811,-500.0,0.00013698,2]
[395327770,1764631843820,-500.0,0.00013698,2]
[395327773,1764631843830,-500.0,0.00013698,2]
[395327774,1764631843841,-633.12833406,0.00013698,2]
[395327777,1764631843850,-4148.91,0.00013698,2]
[395327778,1764631843860,-4148.91,0.00013698,2]
[395327781,1764631843869,-4148.91,0.00013698,2]
[395327782,1764631843878,-4148.91,0.00013698,2]
[395327785,1764631843888,-4148.91,0.00013698,2]
[395327786,1764631843898,-4148.91,0.00013698,2]
[395327789,1764631843907,-4148.91,0.00013698,2]
[395327791,1764631843917,-4148.91,0.00013698,2]
[395327793,1764631843926,-4148.91,0.00013698,2]
[395327795,1764631843935,-4148.91,0.00013698,2]
[395327797,1764631843945,-4148.91,0.00013698,2]
[395327798,1764631843954,-4148.91,0.00013698,2]
[395327800,1764631843962,-4148.91,0.00013698,2]
[395327802,1764631843969,-4148.91,0.00013698,2]
[395327804,1764631843977,-4148.91,0.00013698,2]
[395327806,1764631843985,-4148.91,0.00013698,2]
[395327808,1764631843992,-4148.91,0.00013698,2]
[395327810,1764631844001,-4148.91,0.00013698,2]
[395327812,1764631844010,-4148.91,0.00013698,2]
[395327814,1764631844019,-4148.91,0.00013698,2]
[395327816,1764631844028,-4148.91,0.00013698,2]
[395327818,1764631844037,-4148.91,0.00013698,2]
[395327820,1764631844046,-4148.91,0.00013698,2]
[395327822,1764631844055,-4149.12327526,0.00013698,2]
[395327824,1764631844064,-1436.39,0.00013698,2]
[395327826,1764631844073,-1436.39,0.00013698,2]
[395327828,1764631844082,-1436.39,0.00013698,2]
[395327830,1764631844091,-1436.39,0.00013698,2]
[395327832,1764631844100,-1436.39,0.00013698,2]
[395327834,1764631844109,-1436.39,0.00013698,2]
[395327836,1764631844118,-1436.39,0.00013698,2]
[395327838,1764631844128,-1436.39,0.00013698,2]
[395327840,1764631844138,-1436.39,0.00013698,2]
[395327842,1764631844146,-1436.39,0.00013698,2]
[395327844,1764631844156,-1436.39,0.00013698,2]
[395327846,1764631844165,-1436.39,0.00013698,2]
[395327848,1764631844174,-1436.39,0.00013698,2]
[395327850,1764631844183,-1436.39,0.00013698,2]
[395327852,1764631844192,-1436.39,0.00013698,2]
[395327854,1764631844200,-1436.39,0.00013698,2]
[395327856,1764631844210,-1436.39,0.00013698,2]
[395327857,1764631844219,-1436.39,0.00013698,2]
[395327859,1764631844227,-1436.39,0.00013698,2]
[395327861,1764631844236,-1436.39,0.00013698,2]
[395327863,1764631844245,-1436.39,0.00013698,2]
[395327865,1764631844256,-1436.39,0.00013698,2]
[395327867,1764631844265,-1436.39,0.00013698,2]
[395327868,1764631844274,-1436.59313397,0.00013698,2]
[395327870,1764631844283,-500.0,0.00013698,2]
[395327872,1764631844291,-500.0,0.00013698,2]
[395327874,1764631844300,-506.99223772,0.00013698,2]
[395327876,1764631844310,-500.0,0.00013698,2]
[395327878,1764631844319,-500.0,0.00013698,2]
[395327879,1764631844328,-500.0,0.00013698,2]
[395327880,1764631844339,-500.0,0.00013698,2]
[395327881,1764631844348,-500.0,0.00013698,2]
[395327882,1764631844357,-500.0,0.00013698,2]
[395327883,1764631844366,-545.095202,0.00013698,2]
[395327884,1764631844375,-1000.0,0.00013698,2]
[395327885,1764631844383,-1000.0,0.00013698,2]
[395327886,1764631844392,-1000.0,0.00013698,2]
[395327887,1764631844401,-1000.0,0.00013698,2]
[395327888,1764631844410,-1000.0,0.00013698,2]
[395327889,1764631844419,-1000.0,0.00013698,2]
[395327890,1764631844428,-542.3,0.00013698,2]
[395327891,1764631844437,-64697.2109087,0.00013699,2]
[395327892,1764631844446,-2933.3652188,0.00013699,2]
[395327893,1764631844455,-17297.05446,0.00013699,2]
[395327894,1764631844464,-1000.0,0.00013699,2]
[395327895,1764631844473,-7084.562696,0.00013699,2]
[395327896,1764631844482,-1500.0,0.00013699,2]
[395327897,1764631844491,-193.087241,0.00013699,2]
[395327898,1764631844500,-193.087241,0.00013699,2]
[395327899,1764631844509,-193.087241,0.00013699,2]
[395327900,1764631844518,-193.087241,0.00013699,2]
[395327901,1764631844526,-193.087241,0.00013699,2]
[395327902,1764631844535,-193.087241,0.00013699,2]
[395327903,1764631844544,-193.087241,0.00013699,2]
[395327904,1764631844553,-193.087241,0.00013699,2]
[395327905,1764631844562,-193.087241,0.00013699,2]
[395327906,1764631844570,-193.087241,0.00013699,2]
[395327907,1764631844579,-193.087241,0.00013699,2]
[395327908,1764631844588,-193.087241,0.00013699,2]
[395327909,1764631844597,-193.087241,0.00013699,2]
[395327910,1764631844606,-193.087241,0.00013699,2]
[395327911,1764631844614,-193.087241,0.00013699,2]
[395327912,1764631844623,-193.087241,0.00013699,2]
[395327913,1764631844632,-193.087241,0.00013699,2]
[395327914,1764631844641,-193.087241,0.00013699,2]
[395327915,1764631844650,-193.087241,0.00013699,2]
[395327916,1764631844659,-193.087244,0.00013699,2]
[395327917,1764631844668,-500.0,0.00013699,2]
[395327918,1764631844677,-500.0,0.00013699,2]
[395327919,1764631844686,-501.2640882,0.00013699,2]
[395327920,1764631844695,-500.0153584,0.00013699,2]
[395327921,1764631844704,-500.88747603,0.00013699,2]
[395327922,1764631844712,-300.98021307,0.00013699,2]
[395327924,1764631844721,-500.12075093,0.00013699,2]
[395327926,1764631844730,-500.0,0.00013699,2]
[395327928,1764631844740,-500.0,0.00013699,2]
[395327930,1764631844749,-500.31067998,0.00013699,2]
[395327932,1764631844758,-500.79634876,0.00013699,2]
[395327934,1764631844767,-500.0,0.00013699,2]
[395327936,1764631844776,-500.0,0.00013699,2]
[395327937,1764631844785,-500.38218095,0.00013699,2]
[395327940,1764631844795,-302.96830251,0.00013699,2]
[395327941,1764631844804,-500.0,0.00013699,2]
[395327944,1764631844814,-500.0,0.00013699,2]
[395327945,1764631844823,-294.8819551,0.00013699,2]
[395327947,1764631844832,-500.61769228,0.00013699,2]
[395327949,1764631844842,-500.0,0.00013699,2]
[395327951,1764631844851,-500.0,0.00013699,2]
[395327953,1764631844860,-500.0,0.00013699,2]
[395327955,1764631844870,-500.0,0.00013699,2]
[395327957,1764631844878,-500.0,0.00013699,2]
[395327959,1764631844888,-159.25511884,0.00013699,2]
[395327961,1764631844897,-500.0,0.00013699,2]
[395327963,1764631844906,-500.53605713,0.00013699,2]
[395327965,1764631844917,-159.6503719,0.00013699,2]
[395327967,1764631844926,-500.0,0.00013699,2]
[395327969,1764631844936,-500.09013745,0.00013699,2]
[395327971,1764631844944,-500.0,0.00013699,2]
[395327973,1764631844954,-500.0,0.00013699,2]
[395327975,1764631844963,-500.0,0.00013699,2]
[395327977,1764631844972,-500.21477125,0.00013699,2]
[395327979,1764631844981,-500.25632234,0.00013699,2]
[395327981,1764631844991,-415.44840146,0.00013699,2]
[395327983,1764631845000,-234.7839839,0.00013699,2]
[395327985,1764631845009,-500.0,0.00013699,2]
[395327987,1764631845019,-500.0,0.00013699,2]
[395327989,1764631845029,-500.0,0.00013699,2]
[395327991,1764631845038,-500.40746369,0.00013699,2]
[395327993,1764631845047,-500.25056323,0.00013699,2]
[395327995,1764631845057,-2000.0,0.00013699,7]
[395327997,1764631845067,-500.0,0.00013699,2]
[395327999,1764631845076,-500.0,0.00013699,2]
[395328001,1764631845085,-500.0,0.00013699,2]
[395328003,1764631845095,-500.0,0.00013699,2]
[395328005,1764631845105,-500.0,0.00013699,2]
[395328007,1764631845114,-500.0,0.00013699,2]
[395328009,1764631845124,-500.67440561,0.00013699,2]
[395328011,1764631845133,-501.50700825,0.00013699,2]
[395328013,1764631845143,-500.0,0.00013699,2]
[395328015,1764631845152,-500.0,0.00013699,2]
[395328017,1764631845161,-500.0,0.00013699,2]
[395328019,1764631845170,-500.0,0.00013699,2]
[395328021,1764631845179,-500.0,0.00013699,2]
[395328023,1764631845188,-500.48060648,0.00013699,2]
[395328025,1764631845198,-500.0,0.00013699,2]
[395328027,1764631845207,-500.0,0.00013699,2]
[395328029,1764631845216,-500.0,0.00013699,2]
[395328031,1764631845225,-158.12391326,0.00013699,2]
[395328033,1764631845234,-400.25382658,0.00013699,2]
[395328034,1764631845243,-422.00230498,0.00013699,2]
[395328036,1764631845252,-522.0666202,0.00013699,2]
[395328038,1764631845264,-431.79214659,0.00013699,2]
[395328040,1764631845273,-158.31823594,0.00013699,2]
[395328042,1764631845283,-500.0,0.00013699,2]
[395328044,1764631845292,-500.0,0.00013699,2]
[395328046,1764631845301,-500.0,0.00013699,2]
[395328048,1764631845311,-500.2656795,0.00013699,2]
[395328050,1764631845320,-500.32724314,0.00013699,2]
[395328052,1764631845330,-500.0,0.00013699,2]
[395328054,1764631845343,-500.17804152,0.00013699,2]
[395328057,1764631845352,-159.5644024,0.00013699,2]
[395328060,1764631845362,-500.0,0.00013699,2]
[395328062,1764631845372,-500.0,0.00013699,2]
[395328064,1764631845383,-500.0,0.00013699,2]
[395328066,1764631845394,-500.0,0.00013699,2]
[395328068,1764631845403,-500.14227024,0.00013699,2]
[395328070,1764631845414,-500.0,0.00013699,2]
[395328072,1764631845423,-500.0,0.00013699,2]
[395328074,1764631845432,-500.0,0.00013699,2]
[395328076,1764631845442,-160.0,0.00013699,2]
[395328078,1764631845452,-1000.0,0.00013699,2]
[395328080,1764631845461,-1000.0,0.00013699,2]
[395328082,1764631845470,-1000.0,0.00013699,2]
[395328084,1764631845479,-1000.0,0.00013699,2]
[395328086,1764631845488,-500.5956,0.00013699,2]
[395328087,1764631845498,-5059.27858282,0.00013718,2]
[395328089,1764631845507,-500.0,0.00013784,2]
[395328091,1764631845516,-7507.43292599,0.000138,2]
[395328093,1764631845526,-336.56,0.00013804,2]
[395328095,1764631845536,-361.63533157,0.00013821,2]
[395328097,1764631845546,-993.03108658,0.00013821,2]
[395328099,1764631845555,-1000.0,0.00013821,2]
[395328103,1764631845565,-521.8283376,0.00013821,2]
[395328106,1764631845574,-500.0,0.00013821,2]
[395328108,1764631845583,-1000.0,0.00013821,2]
[395328110,1764631845593,-1000.0,0.00013821,2]
[395328112,1764631845602,-500.0,0.00013821,2]
[395328114,1764631845611,-501.96961443,0.00013821,2]
[395328116,1764631845621,-619.45855489,0.00013821,2]
[395328118,1764631845631,-1000.0,0.00013821,2]
[395328120,1764631845642,-502.32637191,0.00013821,2]
[395328122,1764631845651,-500.0,0.00013821,2]
[395328124,1764631845661,-917.2457815,0.00013821,2]
[395328126,1764631845671,-1000.0,0.00013821,2]
[395328128,1764631845680,-500.0,0.00013821,2]
[395328130,1764631845689,-1000.0,0.00013821,2]
[395328132,1764631845698,-1000.0,0.00013821,2]
[395328134,1764631845708,-1000.0,0.00013821,2]
[395328136,1764631845717,-1000.0,0.00013821,2]
[395328138,1764631845726,-311.66109655,0.00013821,2]
[395328140,1764631845735,-1000.0,0.00013821,2]
[395328142,1764631845745,-1000.0,0.00013821,2]
[395328144,1764631845754,-1000.0,0.00013821,2]
[395328146,1764631845764,-1000.0,0.00013821,2]
[395328148,1764631845773,-500.0,0.00013821,2]
[395328150,1764631845782,-500.0,0.00013821,2]
[395328152,1764631845792,-1000.0,0.00013821,2]
[395328154,1764631845801,-1000.0,0.00013821,2]
[395328156,1764631845810,-1000.0,0.00013821,2]
[395328158,1764631845820,-1000.0,0.00013821,2]
[395328160,1764631845829,-1000.0,0.00013821,2]
[395328162,1764631845838,-1000.0,0.00013821,2]
[395328164,1764631845848,-528.37362186,0.00013821,2]
[395328165,1764631845857,-225.07445679,0.00013821,2]
[395328168,1764631845868,-1000.0,0.00013821,2]
[395328170,1764631845877,-480.38732186,0.00013821,2]
[395328171,1764631845887,-1000.0,0.00013821,2]
[395328173,1764631845896,-1000.0,0.00013821,2]
[395328175,1764631845905,-1000.0,0.00013821,2]
[395328177,1764631845914,-1000.0,0.00013821,2]
[395328180,1764631845924,-1000.0,0.00013821,2]
[395328182,1764631845934,-2000.0,0.00014014,7]
[395328184,1764631845943,-500.0,0.00014058,2]
[395328186,1764631845953,-547.0,0.00014162,2]
[395328188,1764631845962,-298.26089446,0.000142,2]
[395328209,1764631846153,-500.0,0.00014247,2]
[395328211,1764631846163,-1000.0,0.00014247,2]
[395328213,1764631846172,-1000.0,0.00014247,2]
[395328215,1764631846183,-1000.0,0.00014247,2]
[395328217,1764631846192,-1057.70995529,0.00014247,2]
[395328219,1764631846202,-1000.0,0.00014247,2]
[395328221,1764631846211,-1000.0,0.00014247,2]
[395328223,1764631846221,-1000.0,0.00014247,2]
[395328225,1764631846231,-1000.0,0.00014247,2]
[395328227,1764631846240,-899.90573262,0.00014247,2]
[395328229,1764631846249,-1000.39460122,0.00014247,2]
[395328231,1764631846259,-1000.0,0.00014247,2]
[395328233,1764631846268,-915.85980283,0.00014247,2]
[395328235,1764631846277,-1000.0,0.00014247,2]
[395328237,1764631846287,-1000.0,0.00014247,2]
[395328239,1764631846296,-1000.0,0.00014247,2]
[395328241,1764631846305,-1000.0,0.00014247,2]
[395328243,1764631846315,-276.53194039,0.00014247,2]
[395328245,1764631846324,-1000.0,0.00014247,2]
[395328247,1764631846334,-1000.0,0.00014247,2]
[395328249,1764631846346,-1000.0,0.00014247,2]
[395328251,1764631846355,-1000.0,0.00014247,2]
[395328253,1764631846364,-1000.34541779,0.00014247,2]
[395328255,1764631846374,-1000.0,0.00014247,2]
[395328256,1764631846382,-1000.0,0.00014247,2]
[395328258,1764631846392,-1000.0,0.00014247,2]
[395328261,1764631846402,-500.0,0.00014247,2]
[395328262,1764631846412,-1000.0,0.00014247,2]
[395328265,1764631846422,-1000.0,0.00014247,2]
[395328266,1764631846430,-1000.0,0.00014247,2]
[395328268,1764631846440,-1000.0,0.00014247,2]
[395328270,1764631846449,-1000.0,0.00014247,2]
[395328272,1764631846459,-1000.0,0.00014247,2]
[395328274,1764631846468,-1000.0,0.00014247,2]
[395328277,1764631846478,-1000.0,0.00014247,2]
[395328278,1764631846486,-260.0,0.00014247,2]
[395328280,1764631846496,-2000.0,0.00014329,7]
[395328282,1764631846506,-500.0,0.00014332,2]
[395328285,1764631846515,-1500.0,0.00014368,2]
[395328286,1764631846524,-417.58213947,0.00014368,2]
[395328288,1764631846533,-368.92945157,0.00014368,2]
[395328290,1764631846543,-1500.0,0.00014368,2]
[395328292,1764631846552,-1500.0,0.00014368,2]
[395328295,1764631846562,-520.93302199,0.00014368,2]
[395328296,1764631846572,-473.6716202,0.00014368,2]
[395328298,1764631846581,-1500.0,0.00014368,2]
[395328300,1764631846590,-1500.0,0.00014368,2]
[395328302,1764631846600,-1500.0,0.00014368,2]
[395328304,1764631846610,-526.37866657,0.00014368,2]
[395328306,1764631846619,-1500.0,0.00014368,2]
[395328308,1764631846629,-1005.28074258,0.00014368,2]
[395328310,1764631846638,-1500.0,0.00014368,2]
[395328312,1764631846648,-1500.0,0.00014368,2]
[395328315,1764631846657,-1500.0,0.00014368,2]
[395328316,1764631846667,-1500.0,0.00014368,2]
[395328318,1764631846676,-1500.0,0.00014368,2]
[395328321,1764631846686,-1500.0,0.00014368,2]
[395328322,1764631846695,-1500.0,0.00014368,2]
[395328324,1764631846705,-1500.0,0.00014368,2]
[395328326,1764631846713,-666.13927582,0.00014368,2]
[395328328,1764631846722,-1500.0,0.00014368,2]
[395328330,1764631846732,-1500.0,0.00014368,2]
[395328332,1764631846742,-1503.13720354,0.00014368,2]
[395328335,1764631846752,-100000.0,0.00014444,2]
[395328336,1764631846761,-1000.0,0.00014491,2]
[395328338,1764631846771,-622.0,0.00014495,2]
[395328340,1764631846780,-2154.0,0.00014495,2]
[395328343,1764631846790,-631.0,0.00014495,2]
[395328344,1764631846799,-414.0,0.00014495,2]
[395328346,1764631846808,-13070.3279842,0.00014521,2]
[395328347,1764631846817,-500.0,0.00014573,2]
[395328348,1764631846827,-500.0,0.00014606,2]
[395328349,1764631846837,-21328.3691521,0.00014638,2]
[395328350,1764631846846,-2000.0,0.00014644,7]
[395328351,1764631846857,-150.0,0.00014685,2]
[395328352,1764631846867,-150.0,0.00014685,2]
[395328353,1764631846877,-309.29654756,0.00014748,2]
[395328354,1764631846886,-500.0,0.00014795,2]
[395328355,1764631846898,-1500.0,0.00014795,2]
[395328356,1764631846908,-1500.0,0.00014795,2]
[395328357,1764631846918,-500.0,0.00014795,2]
[395328358,1764631846927,-1500.0,0.00014795,2]
[395328359,1764631846938,-1502.4039854,0.00014795,2]
[395328360,1764631846948,-560.04477731,0.00014795,2]
[395328361,1764631846958,-1500.0,0.00014795,2]
[395328362,1764631846968,-1500.0,0.00014795,2]
[395328363,1764631846978,-500.25177001,0.00014795,2]
[395328364,1764631846987,-183.23149464,0.00014795,2]
[395328365,1764631846997,-1000.36833313,0.00014795,2]
[395328366,1764631847006,-1500.0,0.00014795,2]
[395328367,1764631847015,-1500.0,0.00014795,2]
[395328368,1764631847025,-1500.0,0.00014795,2]
[395328369,1764631847035,-1500.0,0.00014795,2]
[395328370,1764631847045,-1500.0,0.00014795,2]
[395328371,1764631847055,-1500.0,0.00014795,2]
[395328372,1764631847065,-1500.0,0.00014795,2]
[395328373,1764631847075,-1062.65728545,0.00014795,2]
[395328374,1764631847410,-437.34271455,0.00014795,2]
[395328375,1764631847423,-1500.0,0.00014795,2]
[395328376,1764631847434,-147.08672291,0.00014795,2]
[395328377,1764631847446,-1352.91327709,0.00014795,2]
[395328378,1764631847457,-1500.0,0.00014795,2]
[395328379,1764631847467,-435.99000541,0.00014795,2]
[395328380,1764631847478,-1500.0,0.00014795,2]
[395328381,1764631847488,-1500.0,0.00014795,2]
[395328382,1764631847498,-1500.0,0.00014795,2]
[395328383,1764631847507,-1500.0,0.00014795,2]
[395328384,1764631847517,-435.36283039,0.00014795,3]
[395328385,1764631847528,-360.0,0.00014795,2]
[395328386,1764631847538,-2000.0,0.000148,2]
[395328387,1764631847548,-500.0,0.0001488,2]
[395328388,1764631847558,-592.17583953,0.000149,2]
[395328389,1764631847567,-2000.0,0.00014916,2]
[395328390,1764631847577,-666.12544857,0.00014916,2]
[395328391,1764631847586,-1703.53228079,0.00014916,2]
[395328392,1764631847596,-814.81678627,0.00014916,2]
[395328393,1764631847605,-2000.0,0.00014916,2]
[395328394,1764631847614,-1085.07991406,0.00014916,2]
[395328395,1764631847623,-2000.0,0.00014916,2]
[395328396,1764631847632,-2000.0,0.00014916,2]
[395328397,1764631847645,-2000.0,0.00014916,2]
[395328398,1764631847654,-2000.0,0.00014916,2]
[395328399,1764631847664,-2017.3305073,0.00014916,2]
[395328400,1764631847673,-2000.0,0.00014916,2]
[395328401,1764631847683,-2000.0,0.00014916,2]
[395328402,1764631847692,-2000.0,0.00014916,2]
[395328403,1764631847701,-2000.0,0.00014916,2]
[395328404,1764631847711,-1722.57173251,0.00014916,2]
[395328405,1764631847720,-2000.0,0.00014959,7]
[395328406,1764631847730,-12000.0,0.00015,2]
[395328407,1764631847739,-1014.13953218,0.00015,2]
[395328408,1764631847747,-22952.57843499,0.00015,2]
[395328409,1764631847757,-800.0,0.00015011,2]
[395328410,1764631847766,-596.3856,0.00015068,2]
[395328411,1764631847775,-800.0,0.00015068,2]
[395328412,1764631847784,-500.0,0.00015075,2]
[395328413,1764631847793,-500.0,0.00015076,2]
[395328414,1764631847803,-500.0,0.00015107,2]
[395328415,1764631847813,-500.0,0.00015131,2]
[395328416,1764631847822,-500.0,0.00015154,2]
[395328417,1764631847831,-500.0,0.00015222,2]
[395328418,1764631847841,-2000.0,0.00015274,7]
[395328419,1764631847851,-500.0,0.00015289,2]
[395328420,1764631847861,-320.74051982,0.00015296,2]
[395328421,1764631847871,-500.0,0.00015334,2]
[395328422,1764631847880,-460.0,0.00015342,2]
[395328423,1764631847891,-500.0,0.00015342,2]
[395328424,1764631847900,-2000.0,0.00015342,2]
[395328425,1764631847909,-1000.0,0.00015342,2]
[395328426,1764631847919,-500.0,0.00015342,2]
[395328427,1764631847928,-1778.35598638,0.00015342,2]
[395328428,1764631848052,-500.0,0.00013699,2]
[395328429,1764631848061,-935.66779503,0.00014247,2]
[395328430,1764631848071,-221.64401362,0.00015342,2]
[395328431,1764631848080,-2000.0,0.00015342,2]
[395328432,1764631848089,-500.0,0.00015342,2]
[395328433,1764631848098,-2000.0,0.00015342,2]
[395328434,1764631848107,-2000.0,0.00015342,2]
[395328435,1764631848117,-183.70381831,0.00015342,2]
[395328436,1764631848126,-487.81429563,0.00015342,2]
[395328437,1764631848135,-500.57321492,0.00015342,2]
[395328438,1764631848146,-2000.0,0.00015342,2]
[395328439,1764631848155,-500.0,0.00015342,2]
[395328440,1764631848164,-2000.0,0.00015342,2]
[395328441,1764631848174,-500.0,0.00015395,2]
[395328442,1764631848183,-500.0,0.00015428,2]
[395328443,1764631848193,-2500.0,0.00015464,2]
[395328444,1764631848202,-2500.0,0.00015464,2]
[395328445,1764631848211,-2500.0,0.00015464,2]
[395328446,1764631848220,-500.0,0.00015464,2]
[395328447,1764631848229,-2500.0,0.00015464,2]
[395328448,1764631848238,-2500.0,0.00015464,2]
[395328449,1764631848248,-2500.0,0.00015464,2]
[395328450,1764631848257,-387.11495339,0.00015464,2]
[395328451,1764631848266,-2500.0,0.00015464,2]
[395328452,1764631848275,-800.0,0.00015508,2]
[395328453,1764631848284,-500.0,0.00015512,2]
[395328454,1764631848293,-2000.0,0.00015589,7]
[395328455,1764631848302,-302.08483908,0.00015626,2]
[395328456,1764631848312,-500.0,0.00015632,2]
[395328457,1764631848321,-500.0,0.00015702,2]
[395328458,1764631848331,-190.0,0.00015705,2]
[395328459,1764631848345,-2000.0,0.000158,2]
[395328460,1764631848355,-332.60791905,0.00015844,2]
[395328461,1764631848365,-560.0,0.0001589,2]
[395328462,1764631848374,-500.0,0.0001589,2]
[395328463,1764631848384,-2500.0,0.0001589,2]
[395328464,1764631848396,-2500.0,0.0001589,2]
[395328465,1764631848405,-2500.0,0.0001589,2]
[395328466,1764631848415,-2500.0,0.0001589,2]
[395328467,1764631848431,-2500.0,0.0001589,2]
[395328468,1764631848440,-2500.0,0.0001589,2]
[395328469,1764631848449,-1322.29449192,0.0001589,2]
[395328470,1764631848458,-800.0,0.00015897,2]
[395328471,1764631848468,-2000.0,0.00015904,7]
[395328472,1764631848477,-1000.0,0.0001594,2]
[395328473,1764631848486,-244.0,0.0001594,2]
[395328474,1764631848496,-500.0,0.00015976,2]
[395328475,1764631848505,-300.0,0.0001599,3]
[395328476,1764631848515,-353.71323156,0.00016,3]
[395328477,1764631848524,-3000.0,0.00016012,2]
[395328478,1764631848533,-738.85652442,0.00016012,2]
[395328479,1764631848543,-1274.26560652,0.00016012,2]
[395328480,1764631848552,-3000.0,0.00016012,2]